lending/lending_fUSD_20240824
["ID","MTS","AMOUNT","RATE_DAILY","PERIOD"]
[335792118,1724493047732,-500.0,0.00010999,2]
[335792119,1724493047741,-500.0,0.00010999,2]
[335792120,1724493047751,-500.0,0.00010999,2]
[335792121,1724493047761,-500.0,0.00010999,2]
[335792122,1724493047770,-284.30333341,0.00010999,2]
[335792123,1724493047779,-500.0,0.00010999,2]
[335792124,1724493047788,-500.0,0.00010999,2]
[335792126,1724493047798,-500.0,0.00010999,2]
[335792127,1724493047808,-500.0,0.00010999,2]
[335792128,1724493047818,-146.67890144,0.00010999,2]
[335792129,1724493047835,-353.32109856,0.00010999,2]
[335792130,1724493047844,-500.0,0.00010999,2]
[335792131,1724493047854,-500.0,0.00010999,2]
[335792133,1724493047863,-500.0,0.00010999,2]
[335792134,1724493047873,-619.24,0.00010999,2]
[335792135,1724493047882,-545.91742241,0.00010999,2]
[335792136,1724493047894,-500.0,0.00010999,2]
[335792137,1724493047904,-500.0,0.00010999,2]
[335792138,1724493047913,-426.41876218,0.00010999,2]
[335792139,1724493047923,-272.79584884,0.00010999,2]
[335792140,1724493047940,-227.20415116,0.00010999,2]
[335792141,1724493047950,-500.0,0.00010999,2]
[335792142,1724493047960,-298.59006501,0.00010999,2]
[335792175,1724493048884,-201.40993499,0.00010999,2]
[335792177,1724493048893,-500.0,0.00010999,2]
[335792179,1724493048903,-500.0,0.00010999,2]
[335792181,1724493048912,-500.0,0.00010999,2]
[335792183,1724493048922,-500.0,0.00010999,2]
[335792185,1724493048932,-500.0,0.00010999,2]
[335792187,1724493048942,-500.0,0.00010999,2]
[335792189,1724493048951,-500.0,0.00010999,2]
[335792191,1724493048961,-500.0,0.00010999,2]
[335792193,1724493048971,-500.0,0.00010999,2]
[335792195,1724493048981,-500.0,0.00010999,2]
[335792197,1724493048992,-500.0,0.00010999,2]
[335792198,1724493049002,-500.0,0.00010999,2]
[335792201,1724493049012,-249.81788797,0.00010999,2]
[335792202,1724493049022,-500.0,0.00010999,2]
[335792204,1724493049031,-500.0,0.00010999,2]
[335792206,1724493049041,-500.0,0.00010999,2]
[335792208,1724493049051,-506.33627721,0.00010999,2]
[335792210,1724493049060,-500.0,0.00010999,2]
[335792212,1724493049072,-500.0,0.00010999,2]
[335792214,1724493049082,-500.0,0.00010999,2]
[335792216,1724493049092,-500.0,0.00010999,2]
[335792218,1724493049102,-500.0,0.00010999,2]
[335792220,1724493049111,-500.0,0.00010999,2]
[335792222,1724493049121,-500.0,0.00010999,2]
[335792224,1724493049130,-500.0,0.00010999,2]
[335792226,1724493049139,-46.74897577,0.00010999,2]
[335792228,1724493049151,-453.25102423,0.00010999,2]
[335792230,1724493049161,-500.0,0.00010999,2]
[335792232,1724493049171,-500.0,0.00010999,2]
[335792234,1724493049180,-500.0,0.00010999,2]
[335792235,1724493049190,-500.0,0.00010999,2]
[335792237,1724493049199,-466.89475093,0.00010999,2]
[335792239,1724493049209,-558.5,0.00010999,2]
[335792241,1724493049219,-558.5,0.00010999,2]
[335792243,1724493049228,-558.5,0.00010999,2]
[335792245,1724493049238,-558.5,0.00010999,2]
[335792247,1724493049248,-558.5,0.00010999,2]
[335792249,1724493049257,-500.0,0.00010999,2]
[335792251,1724493049268,-500.0,0.00010999,2]
[335792253,1724493049277,-500.0,0.00010999,2]
[335792255,1724493049287,-500.0,0.00010999,2]
[335792257,1724493049297,-500.0,0.00010999,2]
[335792259,1724493049306,-500.0,0.00010999,2]
[335792261,1724493049315,-500.0,0.00010999,2]
[335792263,1724493049325,-500.0,0.00010999,2]
[335792265,1724493049335,-500.0,0.00010999,2]
[335792267,1724493049344,-500.0,0.00010999,2]
[335792269,1724493049354,-522.03861187,0.00010999,2]
[335792271,1724493049364,-500.0,0.00010999,2]
[335792272,1724493049373,-500.0,0.00010999,2]
[335792274,1724493049383,-500.0,0.00010999,2]
[335792276,1724493049393,-500.0,0.00010999,2]
[335792278,1724493049403,-500.0,0.00010999,2]
[335792280,1724493049413,-500.0,0.00010999,2]
[335792282,1724493049423,-500.0,0.00010999,2]
[335792284,1724493049432,-15355.35007155,0.00011,2]
[335792292,1724493049500,-1531.46387062,0.00011,2]
[335792294,1724493049512,-1173.78925899,0.00011,2]
[335792296,1724493049524,-3733.35497294,0.00011,2]
[335792299,1724493049541,-379.9422459,0.00011,2]
[335792301,1724493049552,-1218.4,0.00011,2]
[335792304,1724493049573,-367.43426192,0.00010958,2]
[335792306,1724493049585,-132.56573808,0.00010958,2]
[335792308,1724493049595,-843.66219129,0.00011,2]
[335792441,1724493091290,150.0,0.00022296,120]
[335792442,1724493150955,150.0,0.00025513,120]
[335792451,1724493271364,150.0,0.0002644,120]
[335792455,1724493450738,150.0,0.00026246,120]
[335792470,1724493665169,436.31,9.071e-05,2]
[335792472,1724493750728,150.0,0.00022246,120]
[335792473,1724493780176,359.0,0.00025,60]
[335792475,1724493870779,150.0,0.00023806,120]
[335792476,1724493931668,150.0,0.00026264,120]
[335792526,1724494210039,192.93,9.955e-05,2]
[335792528,1724494231536,-250.0,0.00010014,2]
[335792529,1724494231546,-300.0,0.00010121,2]
[335792530,1724494231555,-169.4241955,0.00010122,2]
[335792531,1724494231567,-365.35210606,0.00010122,2]
[335792532,1724494231647,-23365.22369844,0.00010122,2]
[335792533,1724494231657,-1000.0,0.00010243,2]
[335792534,1724494231666,-172.77,0.00010302,2]
[335792535,1724494231675,-500.0,0.00010369,2]
[335792536,1724494231685,-998.63442284,0.00010505,2]
[335792537,1724494231694,-363.01,0.00010634,2]
[335792538,1724494231704,-332.79,0.00010709,2]
[335792539,1724494231713,-500.0,0.0001078,2]
[335792540,1724494231723,-710.0889,0.00010798,2]
[335792541,1724494231732,-1177.81213549,0.00010799,2]
[335792542,1724494231741,-265.54939791,0.00010852,2]
[335792543,1724494231750,-289.9408,0.00010858,2]
[335792544,1724494231760,-658.0173,0.00010858,2]
[335792545,1724494231769,-2849.1645,0.00010858,2]
[335792546,1724494231778,-1636.9819,0.00010858,2]
[335792547,1724494231787,-2046.0555,0.00010858,2]
[335792548,1724494231797,-4491.5238,0.00010858,2]
[335792549,1724494231806,-3271.2928,0.00010858,2]
[335792550,1724494231815,-155.0,0.00010888,2]
[335792551,1724494231825,-192.30910637,0.00010888,2]
[335792552,1724494231834,-155.0,0.00010888,2]
[335792553,1724494231843,-512.72019683,0.00010888,2]
[335792554,1724494231854,-328.2488375,0.0001089,2]
[335792555,1724494231863,-150.0,0.00010896,2]
[335792556,1724494231873,-261.52724266,0.00010897,2]
[335792557,1724494231885,-738.47275734,0.00010897,2]
[335792558,1724494231894,-760.6281,0.00010897,2]
[335792559,1724494231903,-247.0582,0.00010898,2]
[335792560,1724494231912,-12207.5368,0.00010898,2]
[335792561,1724494231923,-20151.54199073,0.00010899,2]
[335792562,1724494231932,-2292.46,0.000109,2]
[335792563,1724494231941,-162.72061768,0.000109,2]
[335792564,1724494231951,-400.0,0.00010922,2]
[335792565,1724494231961,-9965.59394484,0.00010948,2]
[335792566,1724494231970,-507.2457851,0.00010958,2]
[335792567,1724494231980,-508.97215129,0.00010958,2]
[335792568,1724494231990,-500.0,0.00010958,2]
[335792569,1724494231999,-210.79555399,0.00010958,2]
[335792570,1724494232008,-500.0,0.00010958,2]
[335792571,1724494232017,-500.0,0.00010958,2]
[335792572,1724494232027,-500.0,0.00010958,2]
[335792573,1724494232036,-500.0,0.00010958,2]
[335792574,1724494232045,-500.0,0.00010958,2]
[335792575,1724494232054,-500.0,0.00010958,2]
[335792576,1724494232063,-500.0,0.00010958,2]
[335792577,1724494232073,-500.0,0.00010958,2]
[335792578,1724494232082,-500.0,0.00010958,2]
[335792579,1724494232091,-500.0,0.00010958,2]
[335792580,1724494232100,-500.0,0.00010958,2]
[335792581,1724494232109,-500.0,0.00010958,2]
[335792582,1724494232119,-186.62546525,0.00010958,2]
[335792583,1724494232127,-477.50219315,0.00010958,2]
[335792584,1724494232137,-500.0,0.00010958,2]
[335792585,1724494232146,-500.0,0.00010958,2]
[335792586,1724494232155,-500.0,0.00010958,2]
[335792587,1724494232164,-500.0,0.00010958,2]
[335792588,1724494232174,-500.0,0.00010958,2]
[335792589,1724494232183,-500.0,0.00010958,2]
[335792590,1724494232192,-500.0,0.00010958,2]
[335792591,1724494232202,-500.0,0.00010958,2]
[335792592,1724494232211,-500.0,0.00010958,2]
[335792593,1724494232220,-500.0,0.00010958,2]
[335792594,1724494232229,-515.37503503,0.00010958,2]
[335792595,1724494232238,-301.44705189,0.00010958,2]
[335792596,1724494232247,-500.0,0.00010958,2]
[335792597,1724494232256,-500.0,0.00010958,2]
[335792598,1724494232265,-500.0,0.00010958,2]
[335792599,1724494232274,-161.47706225,0.00010958,2]
[335792600,1724494232283,-500.0,0.00010958,2]
[335792601,1724494232292,-1033.97,0.00010958,2]
[335792602,1724494232301,-1033.97,0.00010958,2]
[335792603,1724494232310,-500.0,0.00010958,2]
[335792604,1724494232319,-500.0,0.00010958,2]
[335792605,1724494232328,-500.0,0.00010958,2]
[335792606,1724494232337,-528.33863402,0.00010958,2]
[335792607,1724494232346,-500.0,0.00010958,2]
[335792608,1724494232357,-499.99,0.00010958,2]
[335792609,1724494232366,-500.0,0.00010958,2]
[335792610,1724494232374,-548.24552301,0.00010958,2]
[335792611,1724494232384,-500.0,0.00010958,2]
[335792612,1724494232393,-186.68351577,0.00010958,2]
[335792613,1724494232402,-500.0,0.00010958,2]
[335792614,1724494232412,-205.66158145,0.00010958,2]
[335792615,1724494232421,-500.0,0.00010958,2]
[335792616,1724494232430,-500.0,0.00010958,2]
[335792617,1724494232439,-500.0,0.00010958,2]
[335792618,1724494232447,-500.0,0.00010958,2]
[335792619,1724494232457,-500.0,0.00010958,2]
[335792620,1724494232466,-500.0,0.00010958,2]
[335792621,1724494232475,-500.0,0.00010958,2]
[335792622,1724494232484,-500.0,0.00010958,2]
[335792623,1724494232493,-500.0,0.00010958,2]
[335792624,1724494232502,-616.38039384,0.00010958,2]
[335792625,1724494232511,-500.0,0.00010958,2]
[335792626,1724494232521,-500.0,0.00010958,2]
[335792627,1724494232530,-500.0,0.00010958,2]
[335792628,1724494232539,-500.0,0.00010958,2]
[335792629,1724494232548,-500.0,0.00010958,2]
[335792630,1724494232557,-500.0,0.00010958,2]
[335792631,1724494232566,-500.0,0.00010958,2]
[335792632,1724494232575,-500.0,0.00010958,2]
[335792633,1724494232584,-509.12460154,0.00010958,2]
[335792634,1724494232593,-500.0,0.00010958,2]
[335792635,1724494232603,-500.0,0.00010958,2]
[335792636,1724494232612,-500.0,0.00010958,2]
[335792637,1724494232621,-500.0,0.00010958,2]
[335792638,1724494232630,-500.0,0.00010958,2]
[335792639,1724494232640,-500.0,0.00010958,2]
[335792640,1724494232653,-500.0,0.00010958,2]
[335792641,1724494232662,-500.0,0.00010958,2]
[335792642,1724494232671,-500.0,0.00010958,2]
[335792643,1724494232682,-500.0,0.00010958,2]
[335792644,1724494232693,-500.0,0.00010958,2]
[335792645,1724494232703,-500.0,0.00010958,2]
[335792646,1724494232713,-500.0,0.00010958,2]
[335792647,1724494232723,-150.0,0.00010958,2]
[335792648,1724494232733,-500.0,0.00010958,2]
[335792649,1724494232743,-500.0,0.00010958,2]
[335792650,1724494232753,-500.0,0.00010958,2]
[335792651,1724494232763,-500.0,0.00010958,2]
[335792652,1724494232772,-5000.0,0.00010958,2]
[335792653,1724494232782,-500.0,0.00010958,2]
[335792654,1724494232793,-500.0,0.00010958,2]
[335792655,1724494232802,-500.0,0.00010958,2]
[335792656,1724494232811,-500.0,0.00010958,2]
[335792657,1724494232820,-500.0,0.00010958,2]
[335792658,1724494232830,-513.63192176,0.00010958,2]
[335792659,1724494232840,-504.85600486,0.00010958,2]
[335792660,1724494232850,-500.0,0.00010958,2]
[335792661,1724494232860,-500.0,0.00010958,2]
[335792662,1724494232870,-500.0,0.00010958,2]
[335792663,1724494232879,-500.0,0.00010958,2]
[335792664,1724494232888,-500.0,0.00010958,2]
[335792665,1724494232898,-287.37906341,0.00010958,2]
[335792666,1724494232907,-500.0,0.00010958,2]
[335792667,1724494232916,-500.0,0.00010958,2]
[335792668,1724494232925,-504.47162107,0.00010958,2]
[335792669,1724494232935,-507.15873826,0.00010958,2]
[335792670,1724494232945,-526.92861377,0.00010958,2]
[335792671,1724494232954,-556.16333443,0.00010958,2]
[335792672,1724494232965,-500.0,0.00010958,2]
[335792673,1724494232974,-500.0,0.00010958,2]
[335792674,1724494232983,-500.0,0.00010958,2]
[335792675,1724494232992,-504.14704719,0.00010958,2]
[335792676,1724494233001,-500.0,0.00010958,2]
[335792677,1724494233010,-490.34720129,0.00010958,2]
[335792678,1724494233019,-500.0,0.00010958,2]
[335792679,1724494233029,-500.0,0.00010958,2]
[335792680,1724494233038,-500.0,0.00010958,2]
[335792681,1724494233048,-72.53626886,0.00010958,2]
[335792682,1724494233061,-427.46373114,0.00010958,2]
[335792683,1724494233071,-172.28642407,0.00010958,2]
[335792684,1724494233080,-724.73,0.00010958,2]
[335792685,1724494233090,-724.73,0.00010958,2]
[335792686,1724494233101,-407.50179228,0.00010958,2]
[335792687,1724494233110,-171.48,0.00010959,2]
[335792688,1724494233120,-150.0,0.00010959,2]
[335792689,1724494233130,-250.0,0.00010959,2]
[335792690,1724494233139,-1500.0,0.00010959,2]
[335792691,1724494233148,-175.79030121,0.00010959,2]
[335792692,1724494233160,-617.29969879,0.00010959,2]
[335792693,1724494233170,-207.07,0.00010959,2]
[335792694,1724494233179,-172.56,0.00010959,2]
[335792695,1724494233189,-547.39285044,0.00010979,2]
[335792696,1724494233199,-500.0,0.00010996,2]
[335792697,1724494233208,-500.0,0.00010996,2]
[335792698,1724494233218,-500.0,0.00010996,2]
[335792699,1724494233383,-500.0,0.00010996,2]
[335792700,1724494233394,-500.0,0.00010996,2]
[335792701,1724494233404,-500.0,0.00010996,2]
[335792702,1724494233414,-500.0,0.00010996,2]
[335792703,1724494233423,-500.0,0.00010996,2]
[335792704,1724494233434,-500.0,0.00010996,2]
[335792705,1724494233444,-500.0,0.00010996,2]
[335792706,1724494233453,-500.0,0.00010996,2]
[335792707,1724494233463,-500.0,0.00010996,2]
[335792708,1724494233472,-500.0,0.00010996,2]
[335792709,1724494233482,-3234.1,0.00010996,2]
[335792710,1724494233492,-500.0,0.00010996,2]
[335792711,1724494233501,-1562.67,0.00010996,2]
[335792712,1724494233510,-500.0,0.00010996,2]
[335792713,1724494233520,-500.0,0.00010996,2]
[335792714,1724494233529,-500.0,0.00010996,2]
[335792715,1724494233539,-500.0,0.00010996,2]
[335792716,1724494233548,-500.0,0.00010996,2]
[335792717,1724494233557,-500.0,0.00010996,2]
[335792718,1724494233567,-500.0,0.00010996,2]
[335792719,1724494233577,-500.0,0.00010996,2]
[335792720,1724494233587,-500.0,0.00010996,2]
[335792721,1724494233596,-500.0,0.00010996,2]
[335792722,1724494233607,-500.0,0.00010996,2]
[335792723,1724494233616,-1303.39,0.00010996,2]
[335792724,1724494233626,-500.0,0.00010996,2]
[335792725,1724494233636,-500.0,0.00010996,2]
[335792726,1724494233648,-500.0,0.00010996,2]
[335792727,1724494233658,-500.0,0.00010996,2]
[335792728,1724494233667,-500.0,0.00010996,2]
[335792729,1724494233677,-500.0,0.00010996,2]
[335792730,1724494233687,-574.95,0.00010996,2]
[335792731,1724494233696,-500.0,0.00010996,2]
[335792732,1724494233707,-500.0,0.00010996,2]
[335792733,1724494233716,-500.0,0.00010996,2]
[335792734,1724494233728,-500.0,0.00010996,2]
[335792735,1724494233738,-500.0,0.00010996,2]
[335792736,1724494233748,-500.0,0.00010996,2]
[335792737,1724494233757,-500.0,0.00010996,2]
[335792738,1724494233767,-500.0,0.00010996,2]
[335792739,1724494233777,-500.0,0.00010996,2]
[335792740,1724494233787,-504.43,0.00010996,2]
[335792741,1724494233797,-500.0,0.00010996,2]
[335792742,1724494233806,-500.0,0.00010996,2]
[335792743,1724494233815,-544.4,0.00010996,2]
[335792744,1724494233824,-500.0,0.00010996,2]
[335792745,1724494233833,-500.0,0.00010996,2]
[335792746,1724494233843,-500.0,0.00010996,2]
[335792747,1724494233853,-500.0,0.00010996,2]
[335792748,1724494233869,-500.0,0.00010996,2]
[335792749,1724494233879,-500.0,0.00010996,2]
[335792750,1724494233889,-500.0,0.00010996,2]
[335792751,1724494233898,-855.69,0.00010996,2]
[335792752,1724494233908,-500.0,0.00010996,2]
[335792753,1724494233917,-633.38255731,0.00010996,2]
[335792754,1724494233928,-676.4,0.00010996,2]
[335792755,1724494233938,-500.0,0.00010996,2]
[335792756,1724494233948,-2913.14,0.00010996,2]
[335792757,1724494233957,-500.0,0.00010996,2]
[335792758,1724494233967,-500.0,0.00010996,2]
[335792759,1724494233977,-415.36948448,0.00010996,2]
[335792760,1724494233994,-1417.41051552,0.00010996,2]
[335792761,1724494234004,-900.04,0.00010996,2]
[335792762,1724494234014,-500.0,0.00010997,2]
[335792763,1724494234024,-307.81992192,0.00010997,2]
[335792764,1724494234036,-192.18007808,0.00010997,2]
[335792765,1724494234045,-500.0,0.00010997,2]
[335792766,1724494234055,-500.0,0.00010997,2]
[335792767,1724494234064,-500.0,0.00010997,2]
[335792768,1724494234074,-507.12146703,0.00010997,2]
[335792769,1724494234083,-500.0,0.00010997,2]
[335792770,1724494234093,-340.567562,0.00010997,2]
[335792771,1724494234102,-500.0,0.00010997,2]
[335792772,1724494234113,-500.0,0.00010997,2]
[335792773,1724494234122,-312.24085148,0.00010997,2]
[335792774,1724494234213,-207.37746497,0.00010997,2]
[335792775,1724494234223,-500.0,0.00010997,2]
[335792776,1724494234233,-500.0,0.00010997,2]
[335792777,1724494234242,-500.0,0.00010997,2]
[335792778,1724494234252,-500.0,0.00010997,2]
[335792779,1724494234261,-500.0,0.00010997,2]
[335792780,1724494234270,-500.0,0.00010997,2]
[335792781,1724494234279,-500.0,0.00010997,2]
[335792782,1724494234288,-334.31470923,0.00010997,2]
[335792783,1724494234300,-165.68529077,0.00010997,2]
[335792784,1724494234309,-500.0,0.00010997,2]
[335792785,1724494234318,-500.0,0.00010997,2]
[335792786,1724494234327,-500.0,0.00010997,2]
[335792787,1724494234337,-500.0,0.00010997,2]
[335792788,1724494234347,-310.19818523,0.00010997,2]
[335792789,1724494234363,-189.80181477,0.00010997,2]
[335792790,1724494234373,-500.0,0.00010997,2]
[335792791,1724494234382,-500.0,0.00010997,2]
[335792792,1724494234392,-500.0,0.00010997,2]
[335792793,1724494234401,-513.65145779,0.00010997,2]
[335792794,1724494234410,-515.8717624,0.00010997,2]
[335792795,1724494234420,-500.0,0.00010997,2]
[335792796,1724494234429,-500.0,0.00010997,2]
[335792797,1724494234439,-511.25575777,0.00010997,2]
[335792798,1724494234448,-500.0,0.00010997,2]
[335792799,1724494234457,-500.0,0.00010997,2]
[335792800,1724494234467,-500.0,0.00010997,2]
[335792801,1724494234476,-500.0,0.00010997,2]
[335792802,1724494234485,-500.0,0.00010997,2]
[335792803,1724494234495,-386.22174161,0.00010997,2]
[335792804,1724494234504,-568.5575849,0.00010997,2]
[335792805,1724494234514,-500.0,0.00010997,2]
[335792806,1724494234524,-500.0,0.00010997,2]
[335792807,1724494234533,-500.0,0.00010997,2]
[335792808,1724494234542,-168.01824212,0.00010997,2]
[335792809,1724494234551,-500.0,0.00010997,2]
[335792810,1724494234561,-500.0,0.00010997,2]
[335792811,1724494234570,-500.0,0.00010997,2]
[335792812,1724494234579,-500.0,0.00010997,2]
[335792813,1724494234588,-500.0,0.00010997,2]
[335792814,1724494234598,-500.0,0.00010997,2]
[335792815,1724494234608,-500.0,0.00010997,2]
[335792816,1724494234618,-500.0,0.00010997,2]
[335792817,1724494234627,-500.0,0.00010997,2]
[335792818,1724494234636,-500.0,0.00010997,2]
[335792819,1724494234647,-500.0,0.00010997,2]
[335792820,1724494234658,-500.0,0.00010997,2]
[335792821,1724494234667,-500.0,0.00010997,2]
[335792822,1724494234677,-500.0,0.00010997,2]
[335792823,1724494234687,-500.0,0.00010997,2]
[335792824,1724494234696,-500.0,0.00010997,2]
[335792825,1724494234706,-500.0,0.00010997,2]
[335792826,1724494234716,-500.0,0.00010997,2]
[335792827,1724494234726,-500.0,0.00010997,2]
[335792828,1724494234735,-623.63172489,0.00010997,2]
[335792829,1724494234744,-527.39135305,0.00010997,2]
[335792830,1724494234753,-500.0,0.00010997,2]
[335792831,1724494234763,-508.98856088,0.00010997,2]
[335792832,1724494234774,-500.0,0.00010997,2]
[335792833,1724494234784,-500.0,0.00010997,2]
[335792834,1724494234794,-500.0,0.00010997,2]
[335792835,1724494234804,-500.0,0.00010997,2]
[335792836,1724494234814,-514.79061968,0.00010997,2]
[335792837,1724494234823,-630.74213503,0.00010997,2]
[335792838,1724494234833,-505.52248449,0.00010997,2]
[335792839,1724494234843,-500.0,0.00010997,2]
[335792840,1724494234853,-500.0,0.00010997,2]
[335792841,1724494234863,-500.0,0.00010997,2]
[335792842,1724494234873,-500.0,0.00010997,2]
[335792843,1724494234883,-731.76,0.00010997,2]
[335792844,1724494234893,-150.0,0.00010997,2]
[335792845,1724494234902,-500.0,0.00010997,2]
[335792846,1724494234911,-506.54645996,0.00010997,2]
[335792847,1724494234921,-500.0,0.00010997,2]
[335792848,1724494234931,-500.0,0.00010997,2]
[335792849,1724494234940,-500.0,0.00010997,2]
[335792850,1724494234949,-288.85782462,0.00010997,2]
[335792851,1724494234958,-500.0,0.00010997,2]
[335792852,1724494234967,-500.0,0.00010997,2]
[335792853,1724494234977,-500.0,0.00010997,2]
[335792854,1724494234987,-500.0,0.00010997,2]
[335792855,1724494234996,-535.22216725,0.00010997,2]
[335792856,1724494235005,-500.0,0.00010997,2]
[335792857,1724494235015,-500.0,0.00010997,2]
[335792858,1724494235024,-500.0,0.00010997,2]
[335792859,1724494235033,-500.0,0.00010997,2]
[335792860,1724494235043,-500.0,0.00010997,2]
[335792861,1724494235052,-390.54779531,0.00010997,2]
[335792862,1724494235061,-516.404039,0.00010997,2]
[335792863,1724494235071,-500.0,0.00010997,2]
[335792864,1724494235080,-516.56408391,0.00010997,2]
[335792865,1724494235090,-500.0,0.00010997,2]
[335792866,1724494235099,-500.0,0.00010997,2]
[335792867,1724494235111,-500.0,0.00010997,2]
[335792868,1724494235120,-500.0,0.00010997,2]
[335792869,1724494235129,-442.20053788,0.00010997,2]
[335792870,1724494235138,-500.0,0.00010997,2]
[335792871,1724494235147,-500.0,0.00010997,2]
[335792872,1724494235156,-500.0,0.00010997,2]
[335792873,1724494235166,-500.0,0.00010997,2]
[335792874,1724494235175,-517.62,0.00010997,2]
[335792875,1724494235184,-500.0,0.00010997,2]
[335792876,1724494235193,-183.93718149,0.00010997,2]
[335792877,1724494235203,-500.0,0.00010997,2]
[335792878,1724494235212,-500.0,0.00010997,2]
[335792879,1724494235220,-500.0,0.00010997,2]
[335792880,1724494235229,-500.0,0.00010997,2]
[335792881,1724494235238,-442.63826273,0.00010997,2]
[335792882,1724494235247,-500.0,0.00010997,2]
[335792883,1724494235256,-500.0,0.00010997,2]
[335792884,1724494235265,-500.0,0.00010997,2]
[335792885,1724494235274,-500.0,0.00010997,2]
[335792886,1724494235283,-989.38,0.00010997,2]
[335792887,1724494235292,-500.0,0.00010997,2]
[335792888,1724494235301,-500.0,0.00010997,2]
[335792889,1724494235310,-500.0,0.00010997,2]
[335792890,1724494235319,-622.67,0.00010997,2]
[335792891,1724494235329,-500.0,0.00010997,2]
[335792892,1724494235337,-636.230921,0.00010997,2]
[335792893,1724494235347,-500.0,0.00010997,2]
[335792894,1724494235356,-970.92,0.00010997,2]
[335792895,1724494235365,-500.0,0.00010997,2]
[335792896,1724494235375,-500.0,0.00010997,2]
[335792897,1724494235384,-500.0,0.00010997,2]
[335792898,1724494235393,-500.0,0.00010997,2]
[335792899,1724494235403,-500.0,0.00010997,2]
[335792900,1724494235412,-500.0,0.00010997,2]
[335792901,1724494235423,-500.0,0.00010997,2]
[335792902,1724494235432,-513.73725337,0.00010997,2]
[335792903,1724494235441,-500.0,0.00010997,2]
[335792904,1724494235450,-500.0,0.00010997,2]
[335792905,1724494235459,-500.0,0.00010997,2]
[335792906,1724494235468,-513.5096879,0.00010997,2]
[335792907,1724494235478,-678.84,0.00010997,2]
[335792908,1724494235487,-790.0,0.00010997,2]
[335792909,1724494235496,-500.0,0.00010997,2]
[335792910,1724494235505,-500.0,0.00010997,2]
[335792911,1724494235515,-500.0,0.00010997,2]
[335792912,1724494235523,-500.0,0.00010997,2]
[335792913,1724494235533,-500.0,0.00010997,2]
[335792914,1724494235541,-500.0,0.00010997,2]
[335792915,1724494235551,-500.0,0.00010997,2]
[335792916,1724494235560,-500.0,0.00010997,2]
[335792917,1724494235569,-500.0,0.00010997,2]
[335792918,1724494235578,-500.0,0.00010997,2]
[335792919,1724494235587,-500.0,0.00010997,2]
[335792920,1724494235597,-500.0,0.00010997,2]
[335792921,1724494235607,-500.0,0.00010997,2]
[335792922,1724494235616,-500.0,0.00010997,2]
[335792923,1724494235625,-500.0,0.00010997,2]
[335792924,1724494235636,-690.27,0.00010997,2]
[335792925,1724494235648,-500.0,0.00010997,2]
[335792926,1724494235658,-500.0,0.00010997,2]
[335792927,1724494235668,-500.0,0.00010997,2]
[335792928,1724494235678,-627.2,0.00010997,2]
[335792929,1724494235687,-500.0,0.00010997,2]